[Event "Early-Titled-Tuesday-Blitz-November-28-2023"]
[Site "Chess.com"]
[Date "2023.11.28"]
[Round "7"]
[White "JuniorJumper"]
[Black "BardArtem"]
[Result "0-1"]
[WhiteElo "2567"]
[BlackElo "2767"]
[TimeControl "180+1"]
[EndTime "9:25:09 PST"]
[Termination "BardArtem won by checkmate"]

1. b3 {[%clk 0:02:47.1]} 1... d5 {[%clk 0:02:59.1]} 2. Bb2 {[%clk 0:02:47.4]}
2... Nf6 {[%clk 0:02:59.6]} 3. e3 {[%clk 0:02:47.5]} 3... Bf5 {[%clk 0:02:58.5]}
4. Nf3 {[%clk 0:02:47.4]} 4... e6 {[%clk 0:02:56.9]} 5. c4 {[%clk 0:02:48]} 5...
c6 {[%clk 0:02:56.7]} 6. Nc3 {[%clk 0:02:48.3]} 6... h6 {[%clk 0:02:56.4]} 7. d4
{[%clk 0:02:48.9]} 7... Bb4 {[%clk 0:02:55.3]} 8. Bd3 {[%clk 0:02:39.8]} 8...
Bxd3 {[%clk 0:02:51]} 9. Qxd3 {[%clk 0:02:38.9]} 9... Ne4 {[%clk 0:02:51.9]} 10.
O-O {[%clk 0:02:38.5]} 10... Bxc3 {[%clk 0:02:51.5]} 11. Bxc3 {[%clk 0:02:38.4]}
11... O-O {[%clk 0:02:51.8]} 12. Ne5 {[%clk 0:02:36.7]} 12... Nd7 {[%clk
0:02:49.5]} 13. Nxd7 {[%clk 0:02:30.9]} 13... Qxd7 {[%clk 0:02:47.8]} 14. Bb4
{[%clk 0:02:28.4]} 14... Rfd8 {[%clk 0:02:45.7]} 15. f3 {[%clk 0:02:28.4]} 15...
Nf6 {[%clk 0:02:41.5]} 16. Be1 {[%clk 0:02:22.6]} 16... Rac8 {[%clk 0:02:38.8]}
17. Bg3 {[%clk 0:02:20.8]} 17... c5 {[%clk 0:02:35.4]} 18. dxc5 {[%clk 0:02:16]}
18... Rxc5 {[%clk 0:02:34.1]} 19. cxd5 {[%clk 0:02:08.6]} 19... Rxd5 {[%clk
0:02:30.6]} 20. Qc4 {[%clk 0:02:04.9]} 20... Rd2 {[%clk 0:02:28.5]} 21. Be5
{[%clk 0:01:48.5]} 21... Rc8 {[%clk 0:02:15.4]} 22. Qh4 {[%clk 0:01:20.7]} 22...
Rcc2 {[%clk 0:02:10.2]} 23. Kh1 {[%clk 0:00:32.7]} 23... Rxg2 {[%clk 0:02:05.4]}
24. Rg1 {[%clk 0:00:33.2]} 24... Qd2 {[%clk 0:01:58.3]} 25. Rad1 {[%clk
0:00:27.7]} 25... Qe2 {[%clk 0:01:34.9]} 26. Qh3 {[%clk 0:00:10]} 26... Rxg1+
{[%clk 0:00:56.1]} 27. Rxg1 {[%clk 0:00:10.9]} 27... Qxe3 {[%clk 0:00:56.7]} 28.
Bxf6 {[%clk 0:00:06.7]} 28... Rc1 {[%clk 0:00:57.3]} 29. Qg2 {[%clk 0:00:03.3]}
29... Qxg1+ {[%clk 0:00:56.6]} 30. Qxg1 {[%clk 0:00:03.4]} 30... Rxg1+ {[%clk
0:00:56.9]} 31. Kxg1 {[%clk 0:00:04.3]} 31... gxf6 {[%clk 0:00:57.7]} 32. Kf2
{[%clk 0:00:05.1]} 32... Kf8 {[%clk 0:00:57.1]} 33. Ke3 {[%clk 0:00:06]} 33...
Ke7 {[%clk 0:00:57.9]} 34. Kd4 {[%clk 0:00:06.8]} 34... Kd6 {[%clk 0:00:58.7]}
35. h4 {[%clk 0:00:06.9]} 35... e5+ {[%clk 0:00:59]} 36. Ke4 {[%clk 0:00:06.9]}
36... Ke6 {[%clk 0:00:59.7]} 37. b4 {[%clk 0:00:07.1]} 37... f5+ {[%clk
0:01:00.3]} 38. Ke3 {[%clk 0:00:07.9]} 38... Kd5 {[%clk 0:01:01.1]} 39. a3
{[%clk 0:00:07]} 39... f4+ {[%clk 0:01:01.7]} 40. Kd3 {[%clk 0:00:06.8]} 40...
f5 {[%clk 0:01:02.4]} 41. h5 {[%clk 0:00:07.7]} 41... e4+ {[%clk 0:01:03.2]} 42.
Ke2 {[%clk 0:00:08.4]} 42... Kd4 {[%clk 0:01:03.7]} 43. Kd2 {[%clk 0:00:09]}
43... exf3 {[%clk 0:01:03]} 44. a4 {[%clk 0:00:09.2]} 44... b6 {[%clk
0:01:00.2]} 45. a5 {[%clk 0:00:08.9]} 45... bxa5 {[%clk 0:00:59.4]} 46. bxa5
{[%clk 0:00:09.8]} 46... a6 {[%clk 0:00:59.9]} 47. Kd1 {[%clk 0:00:08.4]} 47...
Kd3 {[%clk 0:00:58.9]} 48. Ke1 {[%clk 0:00:08.8]} 48... Ke3 {[%clk 0:00:58.9]}
49. Kf1 {[%clk 0:00:05.4]} 49... f2 {[%clk 0:00:59]} 50. Kg2 {[%clk 0:00:06.2]}
50... Ke2 {[%clk 0:00:59]} 51. Kh2 {[%clk 0:00:07.1]} 51... Kf3 {[%clk
0:00:56.5]} 52. Kh3 {[%clk 0:00:05.7]} 52... f1=Q+ {[%clk 0:00:53.2]} 53. Kh4
{[%clk 0:00:05.7]} 53... Qh1# {[%clk 0:00:53.4]} 0-1

[Event "Early-Titled-Tuesday-Blitz-November-28-2023"]
[Site "Chess.com"]
[Date "2023.11.28"]
[Round "7"]
[White "dmosesov"]
[Black "YouShallNotPass001"]
[Result "1-0"]
[WhiteElo "2603"]
[BlackElo "2450"]
[TimeControl "180+1"]
[EndTime "9:25:10 PST"]
[Termination "dmosesov won by checkmate"]

1. Nf3 {[%clk 0:03:00.9]} 1... Nf6 {[%clk 0:02:59.6]} 2. c4 {[%clk 0:03:00.2]}
2... e6 {[%clk 0:03:00.5]} 3. g3 {[%clk 0:03:00.1]} 3... d5 {[%clk 0:03:00.2]}
4. Bg2 {[%clk 0:03:00.7]} 4... a6 {[%clk 0:03:00.4]} 5. O-O {[%clk 0:02:24.6]}
5... dxc4 {[%clk 0:02:54.2]} 6. a4 {[%clk 0:02:24.6]} 6... Nc6 {[%clk
0:02:53.8]} 7. a5 {[%clk 0:01:59.9]} 7... Bb4 {[%clk 0:02:46.8]} 8. Qa4 {[%clk
0:01:43.6]} 8... O-O {[%clk 0:02:44.7]} 9. Ne5 {[%clk 0:01:28.5]} 9... Nxe5
{[%clk 0:02:29.5]} 10. Qxb4 {[%clk 0:01:28.6]} 10... Qd6 {[%clk 0:02:29.9]} 11.
Qc3 {[%clk 0:01:02.5]} 11... Nd5 {[%clk 0:02:26.8]} 12. Qc2 {[%clk 0:01:02.8]}
12... Nb4 {[%clk 0:02:13.3]} 13. Qd1 {[%clk 0:00:59.9]} 13... Rb8 {[%clk
0:02:04.3]} 14. b3 {[%clk 0:00:54.2]} 14... b5 {[%clk 0:01:59.9]} 15. axb6
{[%clk 0:00:44.6]} 15... cxb6 {[%clk 0:02:00.8]} 16. bxc4 {[%clk 0:00:38.3]}
16... Nxc4 {[%clk 0:02:01.7]} 17. d3 {[%clk 0:00:38.4]} 17... Ne5 {[%clk
0:01:49.1]} 18. Nc3 {[%clk 0:00:34.7]} 18... Bd7 {[%clk 0:01:44.1]} 19. Ne4
{[%clk 0:00:28.6]} 19... Qe7 {[%clk 0:01:29.3]} 20. Bf4 {[%clk 0:00:23.3]} 20...
f6 {[%clk 0:01:10]} 21. d4 {[%clk 0:00:20.3]} 21... Nec6 {[%clk 0:01:06.9]} 22.
Bd6 {[%clk 0:00:19.4]} 22... Qf7 {[%clk 0:01:05.4]} 23. e3 {[%clk 0:00:17.4]}
23... a5 {[%clk 0:01:01.5]} 24. Qd2 {[%clk 0:00:16.4]} 24... Rfc8 {[%clk
0:01:00.3]} 25. Bxb8 {[%clk 0:00:16.4]} 25... Rxb8 {[%clk 0:01:01.2]} 26. Rfc1
{[%clk 0:00:16.8]} 26... Qe7 {[%clk 0:01:01.3]} 27. Nc3 {[%clk 0:00:16.3]} 27...
Nd8 {[%clk 0:00:56.5]} 28. d5 {[%clk 0:00:16.6]} 28... e5 {[%clk 0:00:56.7]} 29.
d6 {[%clk 0:00:16.6]} 29... Qf7 {[%clk 0:00:55.7]} 30. Nd5 {[%clk 0:00:16.9]}
30... Nxd5 {[%clk 0:00:52]} 31. Bxd5 {[%clk 0:00:17.8]} 31... Be6 {[%clk
0:00:51.8]} 32. Rc7 {[%clk 0:00:17.6]} 32... Qe8 {[%clk 0:00:44.9]} 33. Re7
{[%clk 0:00:15.3]} 33... Qb5 {[%clk 0:00:25.5]} 34. Bxe6+ {[%clk 0:00:15.5]}
34... Nxe6 {[%clk 0:00:25.8]} 35. Rxe6 {[%clk 0:00:16.4]} 35... Rd8 {[%clk
0:00:25.7]} 36. Rd1 {[%clk 0:00:15]} 36... Kf7 {[%clk 0:00:25.7]} 37. Re7+
{[%clk 0:00:14.8]} 37... Kg6 {[%clk 0:00:26.3]} 38. d7 {[%clk 0:00:14.7]} 38...
a4 {[%clk 0:00:25.5]} 39. Qd3+ {[%clk 0:00:15.1]} 39... Qxd3 {[%clk 0:00:25.4]}
40. Rxd3 {[%clk 0:00:16]} 40... b5 {[%clk 0:00:26]} 41. Re8 {[%clk 0:00:16.6]}
41... Rxd7 {[%clk 0:00:26.4]} 42. Rxd7 {[%clk 0:00:16.5]} 42... b4 {[%clk
0:00:27.3]} 43. Rb8 {[%clk 0:00:16.8]} 43... a3 {[%clk 0:00:28.2]} 44. Ra7
{[%clk 0:00:16]} 44... a2 {[%clk 0:00:29.1]} 45. Rxb4 {[%clk 0:00:15.9]} 45...
Kf5 {[%clk 0:00:30]} 46. Rxa2 {[%clk 0:00:16]} 46... h5 {[%clk 0:00:30.1]} 47.
Raa4 {[%clk 0:00:16.9]} 47... h4 {[%clk 0:00:31]} 48. h3 {[%clk 0:00:17.4]}
48... hxg3 {[%clk 0:00:30.1]} 49. fxg3 {[%clk 0:00:18.3]} 49... g5 {[%clk
0:00:30.5]} 50. g4+ {[%clk 0:00:19.2]} 50... Kg6 {[%clk 0:00:30]} 51. Rb6 {[%clk
0:00:20.1]} 51... e4 {[%clk 0:00:30.9]} 52. Raa6 {[%clk 0:00:20.5]} 52... Kg7
{[%clk 0:00:31.5]} 53. Rxf6 {[%clk 0:00:21]} 53... Kh7 {[%clk 0:00:30.7]} 54.
Rfb6 {[%clk 0:00:21.6]} 54... Kg8 {[%clk 0:00:31.6]} 55. Rb7 {[%clk 0:00:21.7]}
55... Kf8 {[%clk 0:00:31.8]} 56. Ra8# {[%clk 0:00:22.6]} 1-0

[Event "Early-Titled-Tuesday-Blitz-November-28-2023"]
[Site "Chess.com"]
[Date "2023.11.28"]
[Round "7"]
[White "tandercat"]
[Black "ViktoriyaTarasova"]
[Result "0-1"]
[WhiteElo "2081"]
[BlackElo "2363"]
[TimeControl "180+1"]
[EndTime "9:25:12 PST"]
[Termination "ViktoriyaTarasova won on time"]

1. d4 {[%clk 0:03:00.9]} 1... Nf6 {[%clk 0:02:59.5]} 2. c4 {[%clk 0:03:00.9]}
2... e6 {[%clk 0:02:59.7]} 3. Nc3 {[%clk 0:03:00.6]} 3... Bb4 {[%clk 0:03:00]}
4. f3 {[%clk 0:03:00.9]} 4... c5 {[%clk 0:02:56.5]} 5. d5 {[%clk 0:03:00.5]}
5... O-O {[%clk 0:02:54.8]} 6. e4 {[%clk 0:02:58.9]} 6... d6 {[%clk 0:02:55.4]}
7. Ne2 {[%clk 0:02:53.1]} 7... b5 {[%clk 0:02:54.7]} 8. cxb5 {[%clk 0:02:45.9]}
8... exd5 {[%clk 0:02:52.4]} 9. exd5 {[%clk 0:02:41.8]} 9... a6 {[%clk
0:02:52.9]} 10. bxa6 {[%clk 0:02:36.3]} 10... Bxa6 {[%clk 0:02:51.6]} 11. Kf2
{[%clk 0:02:21]} 11... Nbd7 {[%clk 0:02:49.3]} 12. a3 {[%clk 0:02:14.7]} 12...
Ba5 {[%clk 0:02:47.8]} 13. Ng3 {[%clk 0:02:07.3]} 13... Ne5 {[%clk 0:02:39.6]}
14. Bxa6 {[%clk 0:02:03.6]} 14... Rxa6 {[%clk 0:02:38.5]} 15. Re1 {[%clk
0:02:01.9]} 15... c4 {[%clk 0:02:37]} 16. Kg1 {[%clk 0:01:56.9]} 16... Nd3
{[%clk 0:02:20]} 17. Re2 {[%clk 0:01:47.2]} 17... Bb6+ {[%clk 0:02:18.6]} 18.
Kf1 {[%clk 0:01:39.4]} 18... Bd4 {[%clk 0:02:05.1]} 19. Nb5 {[%clk 0:01:23.4]}
19... Bc5 {[%clk 0:02:00.7]} 20. Qc2 {[%clk 0:01:13.2]} 20... Ne5 {[%clk
0:01:34]} 21. Bg5 {[%clk 0:01:01.7]} 21... Qb6 {[%clk 0:01:28.2]} 22. Nc3 {[%clk
0:00:57.4]} 22... Nfd7 {[%clk 0:01:16.9]} 23. Na4 {[%clk 0:00:49.4]} 23... Qb5
{[%clk 0:01:06.5]} 24. Nxc5 {[%clk 0:00:46.7]} 24... Nxc5 {[%clk 0:01:06.8]} 25.
Be7 {[%clk 0:00:37]} 25... Re8 {[%clk 0:01:04.9]} 26. Bg5 {[%clk 0:00:32.4]}
26... Ncd3 {[%clk 0:00:53.9]} 27. f4 {[%clk 0:00:23.5]} 27... h6 {[%clk
0:00:18.8]} 28. fxe5 {[%clk 0:00:07.2]} 28... hxg5 {[%clk 0:00:17.8]} 29. exd6
{[%clk 0:00:06]} 29... Rxd6 {[%clk 0:00:17.4]} 30. Rxe8+ {[%clk 0:00:05.1]}
30... Qxe8 {[%clk 0:00:18.1]} 31. Qxc4 {[%clk 0:00:04.3]} 31... Nxb2 {[%clk
0:00:17.2]} 32. Qe2 {[%clk 0:00:03.5]} 32... Qxe2+ {[%clk 0:00:10.3]} 33. Kxe2
{[%clk 0:00:04.4]} 33... Rxd5 {[%clk 0:00:10.8]} 34. a4 {[%clk 0:00:04.7]} 34...
Ra5 {[%clk 0:00:10.1]} 35. Ra2 {[%clk 0:00:03.8]} 35... Nxa4 {[%clk 0:00:08.1]}
36. Ne4 {[%clk 0:00:04.2]} 36... f5 {[%clk 0:00:06.3]} 37. Nxg5 {[%clk
0:00:02.8]} 37... Nc3+ {[%clk 0:00:06.4]} 0-1

[Event "Early-Titled-Tuesday-Blitz-November-28-2023"]
[Site "Chess.com"]
[Date "2023.11.28"]
[Round "7"]
[White "Shivananda1964"]
[Black "talaicito"]
[Result "0-1"]
[WhiteElo "2390"]
[BlackElo "2234"]
[TimeControl "180+1"]
[EndTime "9:25:13 PST"]
[Termination "talaicito won on time"]

1. e4 {[%clk 0:03:00.9]} 1... c5 {[%clk 0:02:59]} 2. Nf3 {[%clk 0:03:00.3]} 2...
d6 {[%clk 0:02:59]} 3. Bc4 {[%clk 0:02:58.3]} 3... e6 {[%clk 0:02:58]} 4. O-O
{[%clk 0:02:55.1]} 4... Nf6 {[%clk 0:02:56.9]} 5. e5 {[%clk 0:02:52]} 5... dxe5
{[%clk 0:02:55.8]} 6. Nxe5 {[%clk 0:02:52.3]} 6... Bd6 {[%clk 0:02:52.9]} 7. Qe2
{[%clk 0:02:52.3]} 7... O-O {[%clk 0:02:49.8]} 8. d3 {[%clk 0:02:51.2]} 8...
Nbd7 {[%clk 0:02:41]} 9. f4 {[%clk 0:02:44.9]} 9... Qc7 {[%clk 0:02:30.8]} 10.
Nxd7 {[%clk 0:02:17.8]} 10... Bxd7 {[%clk 0:02:29.1]} 11. Nc3 {[%clk 0:02:17.7]}
11... a6 {[%clk 0:02:26.2]} 12. a4 {[%clk 0:02:17.7]} 12... Rfe8 {[%clk
0:01:42.3]} 13. a5 {[%clk 0:02:14.1]} 13... Bc6 {[%clk 0:01:31.3]} 14. Bd2
{[%clk 0:02:09]} 14... Rad8 {[%clk 0:01:26.3]} 15. Ne4 {[%clk 0:02:04.1]} 15...
Be7 {[%clk 0:01:13.2]} 16. Bc3 {[%clk 0:01:56.2]} 16... Nd5 {[%clk 0:01:11.3]}
17. Be5 {[%clk 0:01:54.1]} 17... Qd7 {[%clk 0:01:04.6]} 18. Qg4 {[%clk
0:01:44.8]} 18... f6 {[%clk 0:00:46.3]} 19. Bxd5 {[%clk 0:01:34.4]} 19... exd5
{[%clk 0:00:42.8]} 20. f5 {[%clk 0:00:29]} 20... fxe5 {[%clk 0:00:42.5]} 21. Ng3
{[%clk 0:00:23.9]} 21... Bf6 {[%clk 0:00:42.5]} 22. Rae1 {[%clk 0:00:22.9]}
22... Qf7 {[%clk 0:00:42.5]} 23. h4 {[%clk 0:00:21.7]} 23... Kh8 {[%clk
0:00:42.1]} 24. h5 {[%clk 0:00:21.6]} 24... h6 {[%clk 0:00:42.1]} 25. Kh2 {[%clk
0:00:16.5]} 25... e4 {[%clk 0:00:33.4]} 26. dxe4 {[%clk 0:00:15.1]} 26... dxe4
{[%clk 0:00:33.4]} 27. Nxe4 {[%clk 0:00:14.4]} 27... Bxe4 {[%clk 0:00:31]} 28.
Rxe4 {[%clk 0:00:14.4]} 28... Rxe4 {[%clk 0:00:30.8]} 29. Qxe4 {[%clk
0:00:14.5]} 29... Qxh5+ {[%clk 0:00:30.5]} 30. Kg3 {[%clk 0:00:12.1]} 30... Qg5+
{[%clk 0:00:28.3]} 31. Kh3 {[%clk 0:00:10.4]} 31... Rd4 {[%clk 0:00:25.9]} 32.
Qe8+ {[%clk 0:00:08.6]} 32... Kh7 {[%clk 0:00:26.1]} 33. Qg6+ {[%clk 0:00:03.2]}
33... Qxg6 {[%clk 0:00:24.6]} 34. fxg6+ {[%clk 0:00:03.9]} 34... Kxg6 {[%clk
0:00:25.1]} 35. Rf2 {[%clk 0:00:03.4]} 35... Rh4+ {[%clk 0:00:21.8]} 36. Kg3
{[%clk 0:00:03.5]} 36... Ra4 {[%clk 0:00:22]} 37. Rd2 {[%clk 0:00:02.2]} 37...
Rxa5 {[%clk 0:00:21]} 38. b3 {[%clk 0:00:02.8]} 38... Ra2 {[%clk 0:00:20.2]} 39.
Kf3 {[%clk 0:00:03.1]} 39... Bd4 {[%clk 0:00:17.4]} 40. Ke4 {[%clk 0:00:03.2]}
40... a5 {[%clk 0:00:17.3]} 41. Kd5 {[%clk 0:00:03.6]} 41... b5 {[%clk
0:00:16.8]} 42. Kc6 {[%clk 0:00:03.6]} 42... a4 {[%clk 0:00:17.1]} 43. Kxb5
{[%clk 0:00:03.1]} 43... axb3 {[%clk 0:00:17]} 0-1

[Event "Early-Titled-Tuesday-Blitz-November-28-2023"]
[Site "Chess.com"]
[Date "2023.11.28"]
[Round "7"]
[White "Chemim21"]
[Black "amanjazu"]
[Result "1-0"]
[WhiteElo "2227"]
[BlackElo "2382"]
[TimeControl "180+1"]
[EndTime "9:25:13 PST"]
[Termination "Chemim21 won by checkmate"]

1. d4 {[%clk 0:02:46.4]} 1... Nf6 {[%clk 0:02:58.7]} 2. Bf4 {[%clk 0:02:45.2]}
2... g6 {[%clk 0:02:58.6]} 3. e3 {[%clk 0:02:45.3]} 3... Bg7 {[%clk 0:02:58.6]}
4. Nf3 {[%clk 0:02:45.7]} 4... O-O {[%clk 0:02:57.8]} 5. h3 {[%clk 0:02:46.4]}
5... d6 {[%clk 0:02:57.1]} 6. Nbd2 {[%clk 0:02:46.3]} 6... Nbd7 {[%clk
0:02:56.9]} 7. Be2 {[%clk 0:02:35.1]} 7... c5 {[%clk 0:02:55.8]} 8. c3 {[%clk
0:02:34.3]} 8... b6 {[%clk 0:02:54.3]} 9. O-O {[%clk 0:02:32.7]} 9... Bb7 {[%clk
0:02:54.3]} 10. a4 {[%clk 0:02:31.7]} 10... a6 {[%clk 0:02:53.4]} 11. Bh2 {[%clk
0:02:26.7]} 11... Rc8 {[%clk 0:02:41]} 12. Ne1 {[%clk 0:01:56.6]} 12... Rc7
{[%clk 0:02:22.5]} 13. Bf3 {[%clk 0:01:56]} 13... Qa8 {[%clk 0:02:16.1]} 14.
Bxb7 {[%clk 0:01:54.5]} 14... Qxb7 {[%clk 0:02:17]} 15. Qf3 {[%clk 0:01:48]}
15... Rb8 {[%clk 0:01:54.6]} 16. Nd3 {[%clk 0:01:38.7]} 16... b5 {[%clk
0:01:40.1]} 17. Qxb7 {[%clk 0:01:32.4]} 17... Rbxb7 {[%clk 0:01:23.8]} 18. dxc5
{[%clk 0:01:23.9]} 18... Nxc5 {[%clk 0:01:22.8]} 19. Nxc5 {[%clk 0:01:13.1]}
19... Rxc5 {[%clk 0:01:23.7]} 20. axb5 {[%clk 0:01:10.7]} 20... Rcxb5 {[%clk
0:01:17.7]} 21. Rxa6 {[%clk 0:01:04.8]} 21... Rxb2 {[%clk 0:01:12.1]} 22. Nc4
{[%clk 0:01:03.5]} 22... R2b3 {[%clk 0:01:05.2]} 23. Ra8+ {[%clk 0:00:56.3]}
23... Rb8 {[%clk 0:01:00.8]} 24. Rxb8+ {[%clk 0:00:53]} 24... Rxb8 {[%clk
0:01:01.7]} 25. Na5 {[%clk 0:00:42.7]} 25... Rc8 {[%clk 0:00:54.7]} 26. c4
{[%clk 0:00:39.7]} 26... Ne4 {[%clk 0:00:49.4]} 27. Rc1 {[%clk 0:00:36.7]} 27...
Bc3 {[%clk 0:00:37.4]} 28. Nb7 {[%clk 0:00:22.3]} 28... Rxc4 {[%clk 0:00:29.7]}
29. Bf4 {[%clk 0:00:22]} 29... e5 {[%clk 0:00:23.7]} 30. Bh6 {[%clk 0:00:20.5]}
30... d5 {[%clk 0:00:21.6]} 31. f3 {[%clk 0:00:17.4]} 31... Nf6 {[%clk
0:00:14.4]} 32. Nd6 {[%clk 0:00:14.4]} 32... Rc5 {[%clk 0:00:07.2]} 33. Rb1
{[%clk 0:00:11.4]} 33... Nd7 {[%clk 0:00:04.4]} 34. Rb7 {[%clk 0:00:09.8]} 34...
e4 {[%clk 0:00:01.8]} 35. Rxd7 {[%clk 0:00:09]} 35... f5 {[%clk 0:00:02.3]} 36.
Rd8# {[%clk 0:00:08.2]} 1-0

[Event "Early-Titled-Tuesday-Blitz-November-28-2023"]
[Site "Chess.com"]
[Date "2023.11.28"]
[Round "7"]
[White "Eloist"]
[Black "AnaKuchava"]
[Result "1-0"]
[WhiteElo "2350"]
[BlackElo "2218"]
[TimeControl "180+1"]
[EndTime "9:25:14 PST"]
[Termination "Eloist won on time"]

1. e4 {[%clk 0:03:00.9]} 1... c5 {[%clk 0:02:59.5]} 2. Nf3 {[%clk 0:03:00.7]}
2... d6 {[%clk 0:03:00]} 3. Bb5+ {[%clk 0:03:00.5]} 3... Bd7 {[%clk 0:02:59.8]}
4. Bxd7+ {[%clk 0:03:00.7]} 4... Qxd7 {[%clk 0:03:00.7]} 5. c4 {[%clk
0:03:00.7]} 5... Nc6 {[%clk 0:03:00.1]} 6. d4 {[%clk 0:03:00.8]} 6... cxd4
{[%clk 0:03:01]} 7. Nxd4 {[%clk 0:03:01.4]} 7... Nf6 {[%clk 0:03:01.7]} 8. Nc3
{[%clk 0:03:01.6]} 8... g6 {[%clk 0:02:57.4]} 9. f3 {[%clk 0:03:01.4]} 9... Bg7
{[%clk 0:02:57]} 10. Be3 {[%clk 0:03:01.5]} 10... O-O {[%clk 0:02:54.1]} 11. O-O
{[%clk 0:03:01.5]} 11... Rac8 {[%clk 0:02:53.5]} 12. b3 {[%clk 0:03:00.9]} 12...
a6 {[%clk 0:02:49.3]} 13. Qd3 {[%clk 0:02:53.4]} 13... Ne5 {[%clk 0:02:46.2]}
14. Qe2 {[%clk 0:02:53.1]} 14... b5 {[%clk 0:02:45.6]} 15. Nd5 {[%clk
0:02:46.5]} 15... Nxd5 {[%clk 0:02:25.4]} 16. cxd5 {[%clk 0:02:44.6]} 16... Rc3
{[%clk 0:02:11]} 17. h3 {[%clk 0:02:21.9]} 17... Qc7 {[%clk 0:02:00.7]} 18. f4
{[%clk 0:02:16.5]} 18... Nd7 {[%clk 0:01:46.6]} 19. Nc6 {[%clk 0:02:07.6]} 19...
Nb8 {[%clk 0:01:41.5]} 20. Nd4 {[%clk 0:01:29.1]} 20... Rc8 {[%clk 0:00:54.4]}
21. Rad1 {[%clk 0:01:19.8]} 21... Qa5 {[%clk 0:00:43.6]} 22. Qf2 {[%clk
0:00:59.8]} 22... Bxd4 {[%clk 0:00:25.6]} 23. Bxd4 {[%clk 0:00:55.5]} 23... Rc2
{[%clk 0:00:25.7]} 24. Qh4 {[%clk 0:00:51.8]} 24... Qxa2 {[%clk 0:00:25.7]} 25.
Qg3 {[%clk 0:00:35.9]} 25... Re2 {[%clk 0:00:21.1]} 26. Ra1 {[%clk 0:00:28]}
26... Qd2 {[%clk 0:00:16.3]} 27. Rfd1 {[%clk 0:00:27.9]} 27... Qb4 {[%clk
0:00:09.8]} 28. f5 {[%clk 0:00:17.4]} 28... Rcc2 {[%clk 0:00:08.8]} 29. fxg6
{[%clk 0:00:14.9]} 29... hxg6 {[%clk 0:00:08.9]} 30. Kh1 {[%clk 0:00:13.6]}
30... Rxg2 {[%clk 0:00:08.8]} 31. Qh4 {[%clk 0:00:11.4]} 31... Rh2+ {[%clk
0:00:07.4]} 32. Kg1 {[%clk 0:00:11.8]} 32... Rcg2+ {[%clk 0:00:04.3]} 33. Kf1
{[%clk 0:00:11.7]} 33... f6 {[%clk 0:00:03.6]} 34. Qh6 {[%clk 0:00:07.1]} 34...
Qxb3 {[%clk 0:00:02.1]} 35. Qe3 {[%clk 0:00:04.6]} 35... Qc4+ {[%clk 0:00:01.7]}
36. Qd3 {[%clk 0:00:03.4]} 36... Rf2+ {[%clk 0:00:01]} 37. Kg1 {[%clk
0:00:03.1]} 1-0

[Event "Early-Titled-Tuesday-Blitz-November-28-2023"]
[Site "Chess.com"]
[Date "2023.11.28"]
[Round "7"]
[White "infantaria08"]
[Black "salomez"]
[Result "0-1"]
[WhiteElo "2217"]
[BlackElo "2405"]
[TimeControl "180+1"]
[EndTime "9:25:16 PST"]
[Termination "salomez won by checkmate"]

1. d4 {[%clk 0:02:59]} 1... e6 {[%clk 0:01:14.7]} 2. Bf4 {[%clk 0:02:55.4]} 2...
f5 {[%clk 0:01:11]} 3. Nc3 {[%clk 0:02:54.1]} 3... Nf6 {[%clk 0:01:11.9]} 4. e4
{[%clk 0:02:54.2]} 4... fxe4 {[%clk 0:01:07.3]} 5. f3 {[%clk 0:02:54.6]} 5...
exf3 {[%clk 0:00:58.4]} 6. Nxf3 {[%clk 0:02:55.5]} 6... Be7 {[%clk 0:00:57.4]}
7. Bd3 {[%clk 0:02:54.3]} 7... O-O {[%clk 0:00:57]} 8. Qe2 {[%clk 0:02:55]} 8...
b6 {[%clk 0:00:50.8]} 9. O-O-O {[%clk 0:02:53.2]} 9... Bb7 {[%clk 0:00:50.8]}
10. h3 {[%clk 0:02:53.4]} 10... Nc6 {[%clk 0:00:42.2]} 11. Rhg1 {[%clk
0:02:32.6]} 11... Nb4 {[%clk 0:00:38.6]} 12. Bc4 {[%clk 0:02:24.8]} 12... Nfd5
{[%clk 0:00:35.5]} 13. Bd2 {[%clk 0:02:18.2]} 13... Nxc3 {[%clk 0:00:32.3]} 14.
Bxc3 {[%clk 0:02:10.6]} 14... Nd5 {[%clk 0:00:18.9]} 15. Bd2 {[%clk 0:02:07]}
15... Nf4 {[%clk 0:00:17.7]} 16. Bxf4 {[%clk 0:02:00.1]} 16... Rxf4 {[%clk
0:00:18.6]} 17. Rde1 {[%clk 0:01:54.2]} 17... Kh8 {[%clk 0:00:15]} 18. Qe5
{[%clk 0:01:45.5]} 18... Bd6 {[%clk 0:00:13.4]} 19. Qh5 {[%clk 0:01:43.6]} 19...
Qf8 {[%clk 0:00:14.3]} 20. Ng5 {[%clk 0:01:28.7]} 20... h6 {[%clk 0:00:10.4]}
21. Rgf1 {[%clk 0:01:26.2]} 21... Qf6 {[%clk 0:00:08.4]} 22. Bd3 {[%clk
0:01:14.9]} 22... Rf8 {[%clk 0:00:07.4]} 23. Nf3 {[%clk 0:01:08.1]} 23... Bxf3
{[%clk 0:00:06.4]} 24. gxf3 {[%clk 0:01:07.4]} 24... Rxf3 {[%clk 0:00:06.6]} 25.
Rxf3 {[%clk 0:01:05.1]} 25... Qxf3 {[%clk 0:00:06.1]} 26. Qg6 {[%clk 0:00:50.8]}
26... Qf4+ {[%clk 0:00:06.1]} 27. Kb1 {[%clk 0:00:50.2]} 27... Rf5 {[%clk
0:00:05.9]} 28. Bxf5 {[%clk 0:00:45.5]} 28... Qxf5 {[%clk 0:00:06.2]} 29. Qxf5
{[%clk 0:00:43.7]} 29... exf5 {[%clk 0:00:07.1]} 30. Re8+ {[%clk 0:00:27]} 30...
Kh7 {[%clk 0:00:07]} 31. Rd8 {[%clk 0:00:27.9]} 31... g5 {[%clk 0:00:07]} 32.
Rxd7+ {[%clk 0:00:28.4]} 32... Kg6 {[%clk 0:00:07.9]} 33. Kc1 {[%clk 0:00:25.8]}
33... g4 {[%clk 0:00:07.9]} 34. hxg4 {[%clk 0:00:21.5]} 34... fxg4 {[%clk
0:00:08.8]} 35. Kd1 {[%clk 0:00:20.5]} 35... h5 {[%clk 0:00:08.4]} 36. Ke2
{[%clk 0:00:20.6]} 36... h4 {[%clk 0:00:08.9]} 37. Kf1 {[%clk 0:00:20.8]} 37...
h3 {[%clk 0:00:09]} 38. Rd8 {[%clk 0:00:20.9]} 38... g3 {[%clk 0:00:07.1]} 39.
Rg8+ {[%clk 0:00:20.7]} 39... Kf5 {[%clk 0:00:06.9]} 40. Rh8 {[%clk 0:00:20.6]}
40... Kg4 {[%clk 0:00:04.1]} 41. Rg8+ {[%clk 0:00:20.6]} 41... Kf3 {[%clk
0:00:04.1]} 42. Rf8+ {[%clk 0:00:20.5]} 42... Bxf8 {[%clk 0:00:03.3]} 43. Kg1
{[%clk 0:00:21.2]} 43... g2 {[%clk 0:00:04]} 44. Kh2 {[%clk 0:00:20.7]} 44...
Bd6+ {[%clk 0:00:04.9]} 45. Kxh3 {[%clk 0:00:20.6]} 45... g1=Q {[%clk
0:00:04.9]} 46. c4 {[%clk 0:00:21.5]} 46... Qg3# {[%clk 0:00:05.1]} 0-1